bitfinex/quotes_ETHUSD_20250808
["timestamp","ask_amount","ask_price","bid_price","bid_amount"]
[1754666155664,5.13575221,3958.9,3958.3,0.1264]
[1754666155864,5.13575221,3958.9,3958.6,2.52613416]
[1754666156042,5.13575221,3958.9,3958.7,3.0]
[1754666156242,4.67515221,3958.9,3958.7,3.0]
[1754666156438,0.9178,3958.8,3957.7,12.86779773]
[1754666156652,0.1264,3958.5,3958.0,0.1264]
[1754666156964,4.12,3958.4,3958.3,3.0]
[1754666157130,5.0378,3958.4,3958.1,2.5264533]
[1754666157330,5.0378,3958.4,3958.1,2.52646471]
[1754666157331,0.1264,3958.2,3958.1,2.52646471]
[1754666157642,4.2454,3958.2,3958.1,2.52646471]
[1754666157828,4.2454,3958.2,3958.1,5.52646471]
[1754666158450,5.1632,3958.2,3957.8,2.52663767]
[1754666158653,0.1264,3957.8,3957.4,2.78360875]
[1754666158865,4.119,3957.7,3957.5,3.0]
[1754666159367,4.119,3957.7,3957.6,5.52672395]
[1754666159571,5.0368,3957.7,3957.3,0.1264]
[1754666159734,0.9178,3957.6,3957.5,2.52684775]
[1754666159936,0.4606,3957.6,3957.5,2.52684775]
[1754666160162,0.4606,3957.6,3957.5,3.0]
[1754666160678,0.4606,3958.3,3957.5,0.31264]
[1754666160880,0.1264,3957.8,3957.7,5.52672006]
[1754666161085,0.1264,3957.8,3957.7,3.0]
[1754666161086,4.2454,3957.8,3957.7,3.0]
[1754666161549,4.2454,3957.8,3957.7,5.52672006]
[1754666161965,4.2454,3957.8,3957.7,3.0]
[1754666162164,4.706,3957.8,3957.7,3.0]
[1754666162677,4.706,3957.8,3957.7,5.52672006]
[1754666162886,4.2454,3957.8,3957.7,5.52672006]
[1754666163379,4.119,3957.8,3957.7,5.52672006]
[1754666163568,2.52615439,3958.6,3958.0,2.5264728]
[1754666163569,0.4572,3958.6,3958.0,2.5264728]
[1754666163747,0.1264,3958.1,3957.9,4.29]
[1754666163953,4.119,3958.0,3957.9,7.29]
[1754666164390,4.119,3958.0,3957.9,9.81659238]
[1754666165050,4.119,3958.0,3957.9,7.29]
[1754666165384,2.52659547,3957.9,3957.1,3.041]
[1754666165560,2.52673427,3957.7,3957.1,0.041]
[1754666165760,0.9178,3957.8,3957.1,0.041]
[1754666165761,2.52690467,3957.5,3957.1,0.041]
[1754666165976,0.1264,3957.2,3957.1,0.041]
[1754666166174,4.2454,3957.2,3957.1,5.56810318]
[1754666167083,0.4572,3957.9,3957.8,2.52665622]
[1754666167260,4.119,3957.9,3957.8,2.52665622]
[1754666167587,4.2454,3957.9,3957.8,5.52665622]
[1754666167958,5.1632,3957.9,3957.8,3.0]
[1754666168163,6.28622,3957.9,3957.8,3.0]
[1754666169087,6.28622,3957.9,3957.1,0.041]
[1754666169278,0.1264,3957.4,3957.3,3.0]
[1754666169498,5.1622,3957.4,3957.1,0.041]
[1754666169692,4.2444,3957.4,3957.1,0.041]
[1754666169994,4.2444,3957.4,3957.3,5.52697546]
[1754666170193,4.705,3957.4,3957.1,2.5680974]
[1754666170360,4.2444,3957.4,3957.1,2.5680974]
[1754666170560,0.9178,3957.3,3957.2,2.52703932]
[1754666170789,0.9178,3957.3,3957.1,0.041]
[1754666170992,4.118,3957.4,3957.2,3.0]
[1754666171295,0.55,3957.2,3956.6,0.001]
[1754666171625,3.07717408,3957.0,3956.6,0.001]
[1754666171790,2.52729603,3956.8,3956.6,0.001]
[1754666172003,4.118,3956.7,3956.6,0.001]
[1754666172496,5.0358,3956.7,3956.6,0.001]
[1754666173373,6.3971069,3956.7,3956.6,0.001]
[1754666173557,4.9293069,3956.7,3956.6,0.001]
[1754666173757,5.8471069,3956.7,3956.6,0.001]
[1754666174992,9.46402676,3956.7,3956.6,0.001]
[1754666175356,2.26866811,3956.7,3956.6,0.001]
[1754666175561,5.0358,3956.7,3956.6,0.001]
[1754666175992,4.5786,3956.7,3956.6,0.001]
[1754666176384,5.0358,3956.7,3956.6,0.001]
[1754666176585,5.0358,3956.7,3956.6,2.52842253]
[1754666176782,5.0358,3956.7,3956.6,0.001]
[1754666177183,5.0358,3956.7,3956.6,2.52842253]
[1754666178075,0.4606,3956.7,3956.6,2.52842253]
[1754666178393,4.118,3956.7,3956.6,2.52842253]
[1754666178599,5.0358,3956.7,3956.6,0.001]
[1754666179467,5.53938,3956.7,3956.6,0.001]
[1754666180995,4.118,3956.7,3956.6,0.001]
[1754666181197,4.2444,3956.7,3956.6,0.001]
[1754666181501,5.1622,3956.7,3956.6,0.001]
[1754666184006,7.68955865,3956.7,3956.6,0.001]
[1754666184203,5.1622,3956.7,3956.6,0.001]
[1754666184392,7.68955865,3956.7,3956.6,0.001]
[1754666184701,5.93115587,3956.7,3956.6,0.001]
[1754666185090,1.81315587,3956.7,3956.6,0.001]
[1754666185297,5.1612,3956.7,3956.6,0.001]
[1754666186103,1.0442,3956.7,3956.6,0.001]
[1754666186308,5.1612,3956.7,3956.6,0.001]
[1754666188709,5.7112,3956.7,3956.6,0.001]
[1754666189005,8.7778155,3956.7,3956.6,0.001]
[1754666189180,3.98061166,3956.7,3956.6,0.001]
[1754666189380,8.09661166,3956.7,3956.6,0.001]
[1754666190614,3.85421166,3956.7,3956.6,0.001]
[1754666190783,7.55835481,3956.7,3956.6,0.001]
[1754666191186,8.09805335,3956.7,3956.6,0.001]
[1754666191586,8.09805335,3956.7,3956.6,2.52842253]
[1754666191587,1.97355481,3956.7,3956.6,2.52842253]
[1754666191836,4.2424,3956.7,3956.6,2.52842253]
[1754666192125,1.09649519,3957.0,3956.6,5.52842253]
[1754666192332,1.22289519,3957.0,3956.9,2.52723091]
[1754666192488,1.22289519,3957.0,3956.9,5.52723091]
[1754666192688,5.21249519,3957.0,3956.9,5.95133091]
[1754666192933,5.21249519,3957.0,3956.9,8.10524923]
[1754666193101,6.071,3957.3,3957.2,2.52703932]
[1754666193296,0.002,3957.9,3957.7,2.52672006]
[1754666193499,0.1284,3957.9,3957.8,5.52665622]
[1754666193727,0.1284,3957.9,3956.9,2.15391832]
[1754666193728,4.118,3957.9,3957.1,3.0]
[1754666193885,4.118,3957.9,3957.8,5.52665622]
[1754666194089,0.002,3957.9,3957.8,5.52665622]
[1754666194290,4.2444,3957.9,3957.8,5.52665622]
[1754666194724,4.118,3957.9,3957.8,5.52665622]
[1754666194944,4.118,3957.9,3957.8,3.0]
[1754666195224,4.118,3957.9,3957.8,5.52665622]
[1754666195595,4.118,3957.9,3957.8,3.0]
[1754666196341,5.0312,3957.9,3957.8,3.0]
[1754666196526,5.79960206,3957.9,3957.8,3.0]
[1754666196694,5.79960206,3957.9,3957.1,2.52705812]
[1754666196893,2.52667164,3957.8,3957.2,3.0]
[1754666197112,0.1264,3957.3,3956.8,2.52729478]
[1754666197322,0.1264,3956.9,3956.8,5.52729478]
[1754666197520,4.2404,3956.9,3956.6,0.001]
[1754666197735,0.1264,3956.7,3956.6,0.001]
[1754666197894,2.65375865,3956.7,3956.6,0.001]
[1754666198090,1.0396,3956.7,3956.6,0.001]
[1754666198492,3.56695865,3956.7,3956.6,0.001]
[1754666198691,4.11695865,3956.7,3956.6,0.001]
[1754666198928,5.81193466,3956.7,3956.6,0.001]
[1754666199518,9.92593466,3956.7,3956.6,0.001]
[1754666199824,10.46659274,3956.7,3956.6,0.001]
[1754666201129,10.34019274,3956.7,3956.6,1e-08]
[1754666201330,11.38473311,3956.7,3956.6,1e-08]
[1754666201532,3.07746706,3956.6,3956.1,1e-08]
[1754666201844,3.7535958,3956.2,3956.1,1e-08]
[1754666202036,7.87314319,3956.2,3956.1,1e-08]
[1754666202395,8.78634319,3956.2,3956.1,1e-08]
[1754666202733,9.320256,3956.2,3956.1,1e-08]
[1754666203330,8.64453615,3956.2,3956.1,1e-08]
[1754666203504,9.87653578,3956.2,3956.1,1e-08]
[1754666203694,10.55225563,3956.2,3956.1,1e-08]
[1754666204096,5.76353578,3956.2,3956.1,1e-08]
[1754666204316,0.64193508,3956.2,3956.1,1e-08]
[1754666204597,8.20515507,3956.2,3956.1,1e-08]
[1754666204808,8.74581315,3956.2,3956.1,1e-08]
[1754666205223,6.21813508,3956.2,3956.1,1e-08]
[1754666205401,1.62363508,3956.2,3956.1,1e-08]
[1754666205611,8.06088539,3956.2,3956.1,1e-08]
[1754666205813,6.5553654,3956.2,3956.1,1e-08]
[1754666206019,5.6421654,3956.2,3956.1,1e-08]
[1754666206217,8.16984347,3956.2,3956.1,1e-08]
[1754666206714,8.98176647,3956.2,3956.1,1e-08]
[1754666207331,6.4540884,3956.2,3956.1,1e-08]
[1754666207536,7.51856647,3956.2,3956.1,1e-08]
[1754666207958,4.9908884,3956.2,3956.1,1e-08]
[1754666208366,4.44923032,3956.2,3956.1,1e-08]
[1754666208643,1.07321558,3956.4,3956.1,2.52772504]
[1754666208816,4.113,3956.3,3956.2,2.52767807]
[1754666209004,4.113,3956.3,3956.1,2.52772823]
[1754666209207,4.113,3956.3,3956.2,2.52767807]
[1754666209404,1.07321558,3956.4,3956.3,2.52761418]
[1754666209632,1.07321558,3956.4,3956.3,5.52761418]
[1754666209836,1.07321558,3956.4,3956.3,5.82531418]
[1754666210643,0.002,3957.9,3957.8,2.52665622]
[1754666210864,0.002,3957.9,3957.8,18.65751336]
[1754666211022,4.114,3957.9,3957.8,18.95521336]
[1754666211347,4.114,3957.9,3957.8,19.08161336]
[1754666213066,4.114,3957.9,3957.8,18.78391336]
[1754666213270,4.114,3957.9,3957.8,5.52665622]
[1754666213425,4.114,3957.9,3957.8,3.0]
[1754666214234,4.2404,3957.9,3957.8,3.0]
[1754666214440,5.1835,3957.9,3956.3,12.87819152]
[1754666214664,0.1264,3957.4,3956.4,2.52755029]
[1754666214826,0.1264,3956.8,3956.7,5.52734815]
[1754666215025,4.2364,3956.8,3956.7,3.0]
[1754666215326,4.2364,3956.8,3956.5,0.29067181]
[1754666215723,2.52750377,3956.5,3956.1,1e-08]
[1754666215949,0.1264,3956.3,3956.1,1e-08]
[1754666218375,3.47077807,3956.2,3956.1,1e-08]
[1754666219648,4.02077807,3956.2,3956.1,1e-08]
[1754666219837,5.09925094,3956.2,3956.1,1e-08]
[1754666220481,1.53127287,3956.2,3956.1,1e-08]
[1754666220669,0.1264,3956.2,3956.1,1e-08]
[1754666221243,0.1264,3956.2,3956.1,2.52774197]
[1754666221476,4.2354,3956.2,3956.1,3.00000001]
[1754666222486,7.70617807,3956.2,3956.1,1e-08]
[1754666222685,8.25617807,3956.2,3956.1,1e-08]
[1754666222850,9.33455212,3956.2,3956.1,1e-08]
[1754666228083,5.22555212,3956.2,3956.1,1e-08]
[1754666228498,9.33355212,3956.2,3956.1,1e-08]
[1754666229812,15.50583312,3956.2,3956.1,1e-08]
[1754666232284,3.07793366,3955.8,3955.7,1e-08]
[1754666232488,7.31133366,3955.8,3955.7,1e-08]
[1754666232684,8.25443366,3955.8,3955.7,1e-08]
[1754666233610,4.14743366,3955.8,3955.7,1e-08]
[1754666233776,8.25443366,3955.8,3955.7,1e-08]
[1754666234106,8.84250771,3955.8,3955.7,1e-08]
[1754666234616,9.33280771,3955.8,3955.7,1e-08]
[1754666235128,8.38970771,3955.8,3955.7,1e-08]
[1754666235288,7.31133366,3955.8,3955.7,1e-08]
[1754666235605,8.25443366,3955.8,3955.7,1e-08]
[1754666237278,8.25343366,3955.8,3955.7,1e-08]
[1754666240716,2.52895655,3954.2,3953.4,2.52944959]
[1754666241031,2.52895655,3954.2,3954.1,0.163]
[1754666241032,4.105,3954.2,3954.1,0.163]
[1754666241334,4.105,3954.2,3954.1,5.69202051]
[1754666241513,4.105,3954.2,3954.1,3.163]
[1754666241687,4.105,3954.2,3954.1,3.3377]
[1754666242304,4.105,3954.2,3954.1,0.04]
[1754666244444,6.63395655,3954.2,3954.1,0.04]
[1754666244932,4.105,3954.2,3954.1,0.04]
[1754666245290,6.63395655,3954.2,3954.1,0.04]
[1754666246194,8.10023753,3954.2,3954.1,0.04]
[1754666246595,9.01003753,3954.2,3954.1,0.04]
[1754666247230,9.01003753,3954.2,3953.7,0.004]
[1754666247231,2.5292124,3953.8,3953.7,0.004]
[1754666247725,4.104,3953.8,3953.7,0.004]
[1754666248230,4.104,3953.8,3953.7,2.83097637]
[1754666248523,6.074,3954.4,3953.7,0.61695984]
[1754666248725,4.104,3954.3,3953.8,2.5292124]
[1754666248926,4.104,3954.3,3953.7,0.3017]
[1754666249091,4.104,3954.3,3953.7,0.004]
[1754666249293,6.074,3954.4,3953.7,0.004]
[1754666249517,0.55,3954.1,3953.7,0.004]
[1754666249750,3.07919921,3953.9,3953.7,0.004]
[1754666250026,4.65928,3954.0,3953.7,0.004]
[1754666250027,7.1832124,3953.8,3953.7,0.004]
[1754666250427,8.0930124,3953.8,3953.7,0.004]
[1754666250944,8.76116462,3953.8,3953.7,0.004]
[1754666251307,4.103,3953.8,3953.7,0.004]
[1754666251908,4.103,3953.8,3953.7,2.53327637]
[1754666252408,4.103,3953.8,3953.7,2.65627637]
[1754666252604,4.103,3953.8,3953.7,5.65627637]
[1754666252840,6.074,3954.4,3954.3,2.52889259]
[1754666253005,3.47782381,3955.0,3954.3,2.52889259]
[1754666253208,3.47782381,3955.0,3954.9,5.52850893]
[1754666253209,0.94936971,3955.0,3954.9,5.52850893]
[1754666253407,0.94936971,3955.0,3954.9,5.82620893]
[1754666253644,0.94936971,3955.0,3954.4,3.0]
[1754666253855,0.94936971,3955.0,3954.4,2.52882752]
[1754666253856,4.103,3954.9,3954.4,2.52882752]
[1754666254013,4.103,3954.9,3954.4,3.0]
[1754666254209,0.55,3954.8,3953.7,0.52256619]
[1754666254439,0.55,3954.8,3953.7,0.004]
[1754666254608,2.52870075,3954.6,3953.7,2.53327041]
[1754666254822,4.103,3954.5,3953.8,2.5291973]
[1754666255020,4.103,3954.5,3953.8,2.5292124]
[1754666255344,2.52890341,3954.3,3953.7,0.004]
[1754666255517,6.63101512,3954.2,3953.7,0.004]
[1754666255724,5.37010151,3954.1,3953.7,0.004]
[1754666256045,8.80893006,3954.1,3953.7,0.004]
[1754666256213,3.0792124,3953.8,3953.7,0.004]
[1754666256408,4.652,3953.8,3953.7,0.004]
[1754666256651,4.102,3953.8,3953.7,0.004]
[1754666256952,4.102,3953.8,3953.7,5.78661613]
[1754666257162,4.102,3953.8,3953.7,6.08431613]
[1754666257506,4.102,3953.9,3953.8,5.52919915]
[1754666257739,3.06992226,3954.9,3953.9,2.52914843]
[1754666257956,4.102,3954.8,3954.2,2.5288977]
[1754666258238,4.102,3954.8,3954.3,2.52888051]
[1754666258440,4.102,3954.8,3954.1,2.52900946]
[1754666258644,4.102,3954.8,3954.3,2.52888352]
[1754666258824,4.102,3954.8,3954.3,2.52888868]
[1754666259159,4.102,3954.8,3954.6,2.528682]
[1754666259340,4.102,3954.8,3954.5,2.52875002]
[1754666259946,4.102,3954.8,3954.6,2.52868462]
[1754666260314,4.102,3954.8,3954.4,2.52881649]
[1754666260537,4.102,3954.8,3954.5,3.0]
[1754666260749,4.102,3954.8,3954.3,2.52887232]
[1754666261245,4.102,3954.8,3954.4,3.0]
[1754666261635,0.1264,3954.5,3954.4,2.52882864]
[1754666261947,0.1264,3954.5,3954.4,3.63231291]
[1754666262318,0.94936971,3955.0,3954.9,5.52850893]
[1754666262714,0.94936971,3955.0,3954.9,5.65490893]
[1754666263510,0.94936971,3955.0,3954.9,5.52850893]
[1754666263845,0.94936971,3955.0,3954.9,5.82620893]
[1754666264056,4.1,3955.6,3955.5,2.52812539]
[1754666264353,4.1,3955.6,3955.5,3.0]
[1754666264511,4.2264,3955.6,3955.5,3.0]
[1754666264954,4.6653,3955.6,3955.5,3.0]
[1754666265245,5.1362,3955.6,3955.5,3.0]
[1754666266032,5.1362,3955.6,3955.0,2.52838274]
[1754666266236,0.1264,3955.4,3955.2,2.52830962]
[1754666266555,4.1,3955.3,3955.2,2.52830962]
[1754666266730,4.1,3955.3,3955.2,3.0]
[1754666266931,4.1,3955.3,3955.0,2.52842379]
[1754666267131,4.1,3955.3,3954.8,0.1264]
[1754666267132,4.5389,3955.3,3954.8,2.52853037]
[1754666267328,0.1264,3955.0,3954.9,5.5284937]
[1754666267560,4.2254,3955.0,3954.9,3.0]
[1754666267948,5.1352,3955.0,3954.6,2.52867925]
[1754666268144,0.4389,3954.9,3954.5,0.1264]
[1754666268339,0.9098,3954.9,3954.2,2.52890646]
[1754666268578,0.1264,3954.6,3954.0,2.65543862]
[1754666268744,4.099,3954.5,3954.4,2.52882864]
[1754666269072,4.099,3954.5,3954.4,3.0]
[1754666269369,4.099,3954.5,3954.4,5.52882864]
[1754666269677,0.552,3955.7,3954.7,5.52863681]
[1754666269678,4.098,3954.8,3954.7,5.52863681]
[1754666270077,4.098,3954.8,3954.7,5.65503681]
[1754666270366,0.1264,3955.5,3955.4,2.52818931]
[1754666270592,0.002,3955.7,3955.6,2.52806148]
[1754666270593,4.1,3955.7,3955.6,2.52806148]
[1754666270883,4.1,3955.7,3955.6,5.77746148]
[1754666271052,4.1,3955.7,3955.6,5.95216148]
[1754666271235,4.1,3955.7,3955.6,8.09102417]
[1754666271435,4.1,3955.7,3955.6,7.79332417]
[1754666271760,4.1,3955.7,3955.6,5.52806148]
[1754666272636,0.002,3955.7,3955.6,5.65446148]
[1754666272833,0.002,3955.7,3955.6,5.95216148]
[1754666273459,0.002,3955.7,3955.6,5.65446148]
[1754666273671,0.002,3955.7,3955.6,8.17335417]
[1754666274474,0.002,3955.7,3955.6,8.47105417]
[1754666274630,0.042,3956.4,3956.3,2.52761418]
[1754666274835,0.042,3956.4,3956.3,5.65401418]
[1754666275247,0.042,3956.4,3956.3,5.95171418]
[1754666275447,0.042,3956.4,3956.3,7.79278274]
[1754666276078,0.042,3956.4,3956.3,5.65401418]
[1754666276979,0.042,3956.4,3955.2,2.52826493]
[1754666276980,2.527819,3956.0,3955.2,2.52826493]
[1754666277175,0.1264,3955.8,3954.5,2.52874591]
[1754666277388,0.4321,3955.7,3955.2,0.1264]
[1754666277563,1.0498,3955.6,3955.3,2.52820431]
[1754666277736,0.042,3956.4,3955.8,3.0]
[1754666277942,0.042,3956.4,3955.9,3.0]
[1754666278249,0.042,3956.4,3955.8,15.9082761]
[1754666278250,0.042,3956.4,3956.3,2.52761418]
[1754666278451,0.042,3956.4,3956.3,2.65401418]
[1754666278638,0.042,3956.4,3956.3,0.1264]
[1754666278865,0.042,3956.4,3956.3,2.65401418]
[1754666279067,0.042,3956.4,3956.3,0.1264]
[1754666279565,0.042,3956.4,3956.1,3.0]
[1754666279566,0.4741,3956.4,3956.1,0.1264]
[1754666279769,0.4741,3956.4,3955.6,3.0]
[1754666279770,1.3374,3956.3,3955.6,3.0]
[1754666279965,0.4321,3956.2,3955.2,3.0]
[1754666280168,0.4321,3956.2,3954.8,3.0]
[1754666280169,0.9234,3956.2,3954.8,3.0]
[1754666280476,0.042,3956.4,3955.7,3.0]
[1754666280689,0.042,3956.4,3956.3,5.52761418]
[1754666281247,0.042,3956.4,3956.3,5.65401418]
[1754666281450,0.042,3956.4,3956.3,6.47218512]
[1754666282656,0.042,3956.4,3956.3,6.76988512]
[1754666283646,0.042,3956.4,3956.3,10.86388512]
[1754666283854,0.002,3956.7,3956.6,2.52742253]
[1754666284063,0.002,3957.0,3956.9,2.52723091]
[1754666284248,0.002,3957.0,3956.9,8.208921]
[1754666284474,0.002,3957.0,3956.9,12.302921]
[1754666284677,0.002,3957.0,3956.9,12.600621]
[1754666285995,0.002,3957.9,3957.1,2.52710318]
[1754666286200,0.002,3957.9,3957.8,5.52665622]
[1754666286414,0.002,3957.9,3957.8,19.24027186]
[1754666286615,0.002,3957.9,3957.8,19.36667186]
[1754666287928,0.002,3957.9,3957.8,23.45967186]
[1754666288093,0.002,3957.9,3957.8,23.75737186]
[1754666288694,1e-08,3958.3,3958.1,2.52646471]
[1754666288889,0.04,3958.4,3958.3,5.52633706]
[1754666289082,0.04,3958.4,3958.3,25.15297816]
[1754666289325,0.04,3958.4,3958.3,25.45067816]
[1754666289483,0.002,3959.3,3958.4,5.52627324]
[1754666289837,0.002,3959.3,3958.6,5.5261456]
[1754666289994,0.002,3959.3,3958.6,21.8605636]
[1754666290181,0.002,3959.3,3958.8,18.43429408]
[1754666290517,4.094,3959.3,3958.8,5.52601798]
[1754666290731,0.002,3959.3,3958.8,18.43429408]
[1754666290881,0.002,3959.3,3958.8,20.53033728]
[1754666291087,0.002,3959.3,3958.8,5.52601798]
[1754666292323,0.002,3959.3,3959.2,5.52576278]
[1754666292622,0.002,3959.3,3959.2,18.43403888]
[1754666292827,0.002,3959.3,3959.2,18.98403888]
[1754666293120,0.002,3959.3,3959.2,19.10703888]
[1754666293307,0.002,3959.3,3959.2,21.53932897]
[1754666293621,0.002,3959.3,3959.2,8.08105287]
[1754666293822,0.4341,3959.3,3959.2,5.52576278]
[1754666294023,0.002,3959.3,3959.2,5.52576278]
[1754666294413,0.002,3959.3,3959.2,7.90376278]
[1754666294721,0.002,3959.3,3959.2,9.81679478]
[1754666294926,0.002,3959.3,3959.2,5.52576278]
[1754666295126,0.002,3959.3,3959.2,8.03085117]
[1754666295322,0.04,3960.4,3960.3,2.52506123]
[1754666295491,0.04,3960.4,3960.3,5.52506123]
[1754666296211,0.04,3960.4,3960.3,9.61506123]
[1754666296835,0.04,3960.4,3960.3,5.52506123]
[1754666297017,0.9634,3960.4,3960.3,5.52506123]
[1754666297221,0.04,3960.4,3960.3,5.52506123]
[1754666297530,0.4721,3961.4,3960.4,5.52499747]
[1754666297730,0.4721,3961.4,3960.8,18.43301857]
[1754666297731,0.04,3961.4,3960.8,18.43301857]
[1754666298095,0.4721,3961.4,3960.8,18.43301857]
[1754666298432,0.04,3961.4,3960.8,18.43301857]
[1754666298598,0.4321,3961.3,3960.8,5.52474247]
[1754666298794,0.5313,3961.4,3960.8,5.52474247]
[1754666299001,0.9254,3960.9,3960.8,5.52474247]
[1754666299464,0.9254,3960.9,3960.8,3.0]
[1754666299736,0.9254,3960.9,3960.8,5.52474247]
[1754666300095,0.002,3960.9,3960.8,6.32970051]
[1754666300341,0.002,3960.9,3960.8,6.45610051]
[1754666300828,1e-08,3960.9,3960.8,29.46774151]
[1754666301010,1e-08,3960.9,3960.8,27.56822751]
[1754666301406,1e-08,3961.2,3961.1,3.07455126]
[1754666301717,0.002,3962.3,3961.4,0.55]
[1754666301922,0.002,3962.3,3961.8,16.03001637]
[1754666302236,0.002,3962.3,3961.8,20.79341637]
[1754666302396,0.002,3962.3,3962.2,6.07385038]
[1754666302601,0.002,3962.3,3962.2,9.66314938]
[1754666302928,1e-08,3962.3,3962.2,12.51084066]
[1754666303244,0.04,3963.4,3962.3,5.52378668]
[1754666303543,0.04,3963.4,3963.3,5.5231499]
[1754666303921,0.9634,3963.4,3963.3,3.0]
[1754666304124,0.9634,3963.4,3962.7,2.52352896]
[1754666304442,0.1264,3963.2,3962.6,0.1264]
[1754666304633,0.1264,3963.2,3962.0,2.52392289]
[1754666304634,2.52339781,3963.0,3962.0,2.52392289]
[1754666304832,2.52339781,3963.0,3961.2,10.50591117]
[1754666304833,0.9223,3962.9,3962.1,2.52389654]
[1754666305041,0.77365772,3962.8,3962.4,0.1264]
[1754666305216,0.4291,3962.8,3962.4,0.1264]
[1754666305410,0.9223,3962.7,3962.4,0.1264]
[1754666305648,0.9223,3962.6,3962.4,2.65010102]
[1754666305960,0.4932,3963.2,3962.8,2.52346825]
[1754666306170,0.4932,3963.2,3962.0,2.52392627]
[1754666306171,0.4291,3963.3,3963.2,5.52321356]
[1754666306643,0.04,3963.4,3963.3,5.5231499]
[1754666306845,0.04,3963.4,3963.2,5.52319516]
[1754666307045,0.04,3963.4,3963.3,0.1264]
[1754666307265,0.04,3963.4,3963.3,2.6495499]
[1754666307917,0.04,3963.4,3962.6,6.60955515]
[1754666307918,0.04,3963.4,3961.5,0.4615]
[1754666308119,0.4691,3963.4,3963.0,3.0]
[1754666308318,0.9223,3963.3,3963.0,3.0]
[1754666308517,0.9223,3963.2,3962.6,3.0]
[1754666308741,0.4291,3963.1,3962.6,3.0]
[1754666309021,0.4291,3963.1,3962.2,3.0]
[1754666309327,0.4291,3963.1,3962.2,5.52380717]
[1754666309528,0.4291,3963.1,3963.0,3.0]
[1754666309842,0.042,3963.4,3962.9,2.52334134]
[1754666310044,0.4291,3963.1,3963.0,2.52332464]
[1754666310245,0.042,3963.4,3963.3,5.5231499]
[1754666310444,0.042,3963.4,3963.3,3.0]
[1754666310849,0.9643,3963.4,3963.3,3.0]
[1754666311646,0.81982326,3963.4,3963.3,3.0]
[1754666311845,0.9643,3963.4,3963.3,3.0]
[1754666313355,0.9643,3963.4,3960.6,13.03072472]
[1754666313647,2.52376447,3962.4,3961.6,2.52421295]
[1754666313955,0.9223,3962.3,3961.5,2.52428221]
[1754666314140,0.4291,3962.2,3961.6,2.52423263]
[1754666314323,0.4291,3962.2,3961.1,2.52455126]
[1754666314521,0.4291,3962.2,3961.9,2.52400546]
[1754666314853,0.4291,3962.1,3962.0,3.0]
[1754666315051,0.9223,3962.1,3961.7,2.52416157]
[1754666315355,0.9223,3962.1,3961.8,2.52408787]
[1754666315534,0.4932,3962.1,3961.8,2.52408787]
[1754666315852,0.4291,3962.0,3961.9,5.52404149]
[1754666316247,0.4291,3962.0,3961.9,3.0]
[1754666316556,0.4291,3962.0,3961.9,5.52404149]
[1754666316755,0.4291,3962.0,3961.9,3.0]
[1754666316957,0.4291,3962.0,3961.9,5.52404149]
[1754666317129,0.4291,3962.8,3961.9,0.80482073]
[1754666317324,0.4291,3963.2,3962.7,3.0]
[1754666317526,0.53933808,3963.3,3962.7,0.02523531]
[1754666317853,4.083,3963.3,3963.2,2.52321356]
[1754666318158,0.042,3963.4,3962.4,2.52366991]
[1754666318159,0.042,3963.4,3963.3,2.5231499]
[1754666318357,0.042,3963.4,3963.3,5.5231499]
[1754666319474,0.042,3963.4,3963.3,3.0]
[1754666319633,0.042,3963.4,3963.3,5.5231499]
[1754666320564,0.042,3963.4,3963.3,6.32778023]
[1754666320769,0.002,3964.2,3964.1,2.5226407]
[1754666320934,0.04,3964.4,3964.1,2.5226407]
[1754666320935,0.04,3964.4,3964.3,5.52251343]
[1754666321134,0.002,3964.6,3964.5,5.52238617]
[1754666321135,1e-08,3964.6,3964.5,5.52238617]
[1754666321465,1e-08,3964.6,3964.5,12.62182317]
[1754666321766,1e-08,3964.6,3964.5,7.50426983]
[1754666322004,1e-08,3964.6,3964.5,5.52238617]
[1754666324366,0.42910001,3964.6,3964.5,3.0]
[1754666324536,0.92230001,3964.6,3964.5,3.0]
[1754666324736,0.92230001,3964.6,3963.7,2.52288379]
[1754666324932,0.92230001,3964.6,3963.5,2.52296078]
[1754666324933,2.95153495,3964.5,3963.5,2.52296078]
[1754666325133,0.9223,3964.4,3963.3,0.80463033]
[1754666325464,0.9223,3964.3,3962.3,4.5535]
[1754666325773,3.44492521,3964.2,3963.2,2.52315591]
[1754666325974,2.95176885,3964.1,3963.3,3.0]
[1754666326173,0.4291,3964.1,3963.3,2.52312481]
[1754666326377,0.4291,3964.1,3963.4,2.52307201]
[1754666326674,0.4291,3964.1,3963.3,0.28632115]
[1754666326972,1e-08,3964.6,3964.4,3.0]
[1754666327173,1e-08,3964.6,3964.4,2.52240267]
[1754666327398,1e-08,3964.6,3964.2,3.0]
[1754666327399,0.9223,3964.5,3964.2,3.0]
[1754666327681,1e-08,3964.6,3963.6,3.0]
[1754666327981,0.4291,3964.5,3964.2,3.0]
[1754666328278,0.4291,3964.4,3964.2,5.52256116]
[1754666328987,0.4291,3964.3,3964.1,0.1264]
[1754666329142,0.4291,3964.2,3964.1,0.1264]
[1754666329340,0.9223,3964.2,3963.2,5.52321356]
[1754666329573,0.9223,3964.2,3963.1,4.097]
[1754666329574,0.9223,3964.2,3964.1,2.5226407]
[1754666329774,0.9243,3964.2,3964.1,2.5226407]
[1754666330075,0.9243,3964.2,3963.9,3.1264]